Workbook

Sheet 収支予想表・償還計画表
B2: 収支予想表 | M2: 作成日： | R2: 償還計画表 | X2: お取引先名： | AB2: 2 | AC2: 千円
AB3: 3 | AC3: 百万円
M4: 金額単位： | O4: 百万円 | Y4: 金額単位： | Z4: 百万円
D5: 年度 | E5: 直近期 | F5: 比率 | H5: 比率 | J5: 比率 | L5: 比率 | N5: 比率 | P5: 比率 | U5: 直近期 | V5: =IF(ISBLANK(G5),"",G5) ->  | W5: =IF(ISBLANK(I5),"",I5) ->  | X5: =IF(ISBLANK(K5),"",K5) ->  | Y5: =IF(ISBLANK(M5),"",M5) ->  | Z5: =IF(ISBLANK(O5),"",O5) -> 
B6: 売 上 高 | D6: （予想） | F6: =IF(AND(ISNUMBER(E6)=TRUE,E$6<>""),E6/E$6*100,"") ->  | H6: =IF(AND(ISNUMBER(G6)=TRUE,G$6<>""),G6/G$6*100,"") ->  | J6: =IF(AND(ISNUMBER(I6)=TRUE,I$6<>""),I6/I$6*100,"") ->  | L6: =IF(AND(ISNUMBER(K6)=TRUE,K$6<>""),K6/K$6*100,"") ->  | N6: =IF(AND(ISNUMBER(M6)=TRUE,M$6<>""),M6/M$6*100,"") ->  | P6: =IF(AND(ISNUMBER(O6)=TRUE,O$6<>""),O6/O$6*100,"") ->  | R6: 償還原資 | S6: 当期利益 | T6: （計画） | U6: =IF(ISNUMBER(E34)=TRUE,E34,"") ->  | V6: =IF(ISNUMBER(G34)=TRUE,G34,"") ->  | W6: =IF(ISNUMBER(I34)=TRUE,I34,"") ->  | X6: =IF(ISNUMBER(K34)=TRUE,K34,"") ->  | Y6: =IF(ISNUMBER(M34)=TRUE,M34,"") ->  | Z6: =IF(ISNUMBER(O34)=TRUE,O34,"") -> 
D7: （実績） | F7: =IF(AND(ISNUMBER(E7)=TRUE,E$7<>""),E7/E$7*100,"") ->  | H7: =IF(AND(ISNUMBER(G7)=TRUE,G$7<>""),G7/G$7*100,"") ->  | J7: =IF(AND(ISNUMBER(I7)=TRUE,I$7<>""),I7/I$7*100,"") ->  | L7: =IF(AND(ISNUMBER(K7)=TRUE,K$7<>""),K7/K$7*100,"") ->  | N7: =IF(AND(ISNUMBER(M7)=TRUE,M$7<>""),M7/M$7*100,"") ->  | P7: =IF(AND(ISNUMBER(O7)=TRUE,O$7<>""),O7/O$7*100,"") ->  | T7: （実績） | U7: =IF(ISNUMBER(E35)=TRUE,E35,"") ->  | V7: =IF(ISNUMBER(G35)=TRUE,G35,"") ->  | W7: =IF(ISNUMBER(I35)=TRUE,I35,"") ->  | X7: =IF(ISNUMBER(K35)=TRUE,K35,"") ->  | Y7: =IF(ISNUMBER(M35)=TRUE,M35,"") ->  | Z7: =IF(ISNUMBER(O35)=TRUE,O35,"") -> 
B8: 売上原価 | D8: （予想） | F8: =IF(AND(ISNUMBER(E8)=TRUE,E$6<>""),E8/E$6*100,"") ->  | H8: =IF(AND(ISNUMBER(G8)=TRUE,G$6<>""),G8/G$6*100,"") ->  | J8: =IF(AND(ISNUMBER(I8)=TRUE,I$6<>""),I8/I$6*100,"") ->  | L8: =IF(AND(ISNUMBER(K8)=TRUE,K$6<>""),K8/K$6*100,"") ->  | N8: =IF(AND(ISNUMBER(M8)=TRUE,M$6<>""),M8/M$6*100,"") ->  | P8: =IF(AND(ISNUMBER(O8)=TRUE,O$6<>""),O8/O$6*100,"") ->  | T8: （計画比） | U8: =IF(AND(ISNUMBER(U7),ISNUMBER(U6))=TRUE,U7-U6,"") -> 
D9: （実績） | F9: =IF(AND(ISNUMBER(E9)=TRUE,E$7<>""),E9/E$7*100,"") ->  | H9: =IF(AND(ISNUMBER(G9)=TRUE,G$7<>""),G9/G$7*100,"") ->  | J9: =IF(AND(ISNUMBER(I9)=TRUE,I$7<>""),I9/I$7*100,"") ->  | L9: =IF(AND(ISNUMBER(K9)=TRUE,K$7<>""),K9/K$7*100,"") ->  | N9: =IF(AND(ISNUMBER(M9)=TRUE,M$7<>""),M9/M$7*100,"") ->  | P9: =IF(AND(ISNUMBER(O9)=TRUE,O$7<>""),O9/O$7*100,"") ->  | S9: 配当・役員賞与 | T9: （計画）
B10: 売上総利益 | D10: （予想） | E10: =IF(E6="","",E6-E8) ->  | F10: =IF(AND(ISNUMBER(E10)=TRUE,E$6<>""),E10/E$6*100,"") ->  | G10: =IF(G6="","",G6-G8) ->  | H10: =IF(AND(ISNUMBER(G10)=TRUE,G$6<>""),G10/G$6*100,"") ->  | I10: =IF(I6="","",I6-I8) ->  | J10: =IF(AND(ISNUMBER(I10)=TRUE,I$6<>""),I10/I$6*100,"") ->  | K10: =IF(K6="","",K6-K8) ->  | L10: =IF(AND(ISNUMBER(K10)=TRUE,K$6<>""),K10/K$6*100,"") ->  | M10: =IF(M6="","",M6-M8) ->  | N10: =IF(AND(ISNUMBER(M10)=TRUE,M$6<>""),M10/M$6*100,"") ->  | O10: =IF(O6="","",O6-O8) ->  | P10: =IF(AND(ISNUMBER(O10)=TRUE,O$6<>""),O10/O$6*100,"") ->  | T10: （実績）
D11: （実績） | E11: =IF(E7="","",E7-E9) ->  | F11: =IF(AND(ISNUMBER(E11)=TRUE,E$7<>""),E11/E$7*100,"") ->  | G11: =IF(G7="","",G7-G9) ->  | H11: =IF(AND(ISNUMBER(G11)=TRUE,G$7<>""),G11/G$7*100,"") ->  | I11: =IF(I7="","",I7-I9) ->  | J11: =IF(AND(ISNUMBER(I11)=TRUE,I$7<>""),I11/I$7*100,"") ->  | K11: =IF(K7="","",K7-K9) ->  | L11: =IF(AND(ISNUMBER(K11)=TRUE,K$7<>""),K11/K$7*100,"") ->  | M11: =IF(M7="","",M7-M9) ->  | N11: =IF(AND(ISNUMBER(M11)=TRUE,M$7<>""),M11/M$7*100,"") ->  | O11: =IF(O7="","",O7-O9) ->  | P11: =IF(AND(ISNUMBER(O11)=TRUE,O$7<>""),O11/O$7*100,"") ->  | T11: （計画比） | U11: =IF(AND(ISNUMBER(U10),ISNUMBER(U9))=TRUE,U10-U9,"") -> 
B12: 販売費及び | D12: （予想） | F12: =IF(AND(ISNUMBER(E12)=TRUE,E$6<>""),E12/E$6*100,"") ->  | H12: =IF(AND(ISNUMBER(G12)=TRUE,G$6<>""),G12/G$6*100,"") ->  | J12: =IF(AND(ISNUMBER(I12)=TRUE,I$6<>""),I12/I$6*100,"") ->  | L12: =IF(AND(ISNUMBER(K12)=TRUE,K$6<>""),K12/K$6*100,"") ->  | N12: =IF(AND(ISNUMBER(M12)=TRUE,M$6<>""),M12/M$6*100,"") ->  | P12: =IF(AND(ISNUMBER(O12)=TRUE,O$6<>""),O12/O$6*100,"") ->  | S12: 減価償却費 | T12: （計画） | U12: =IF(ISNUMBER(E36)=TRUE,E36,"") ->  | V12: =IF(ISNUMBER(G36)=TRUE,G36,"") ->  | W12: =IF(ISNUMBER(I36)=TRUE,I36,"") ->  | X12: =IF(ISNUMBER(K36)=TRUE,K36,"") ->  | Y12: =IF(ISNUMBER(M36)=TRUE,M36,"") ->  | Z12: =IF(ISNUMBER(O36)=TRUE,O36,"") -> 
B13: 一般管理費 | D13: （実績） | F13: =IF(AND(ISNUMBER(E13)=TRUE,E$7<>""),E13/E$7*100,"") ->  | H13: =IF(AND(ISNUMBER(G13)=TRUE,G$7<>""),G13/G$7*100,"") ->  | J13: =IF(AND(ISNUMBER(I13)=TRUE,I$7<>""),I13/I$7*100,"") ->  | L13: =IF(AND(ISNUMBER(K13)=TRUE,K$7<>""),K13/K$7*100,"") ->  | N13: =IF(AND(ISNUMBER(M13)=TRUE,M$7<>""),M13/M$7*100,"") ->  | P13: =IF(AND(ISNUMBER(O13)=TRUE,O$7<>""),O13/O$7*100,"") ->  | T13: （実績） | U13: =IF(ISNUMBER(E37)=TRUE,E37,"") ->  | V13: =IF(ISNUMBER(G37)=TRUE,G37,"") ->  | W13: =IF(ISNUMBER(I37)=TRUE,I37,"") ->  | X13: =IF(ISNUMBER(K37)=TRUE,K37,"") ->  | Y13: =IF(ISNUMBER(M37)=TRUE,M37,"") ->  | Z13: =IF(ISNUMBER(O37)=TRUE,O37,"") -> 
C14: うち人件費 | D14: （予想） | F14: =IF(AND(ISNUMBER(E14)=TRUE,E$6<>""),E14/E$6*100,"") ->  | H14: =IF(AND(ISNUMBER(G14)=TRUE,G$6<>""),G14/G$6*100,"") ->  | J14: =IF(AND(ISNUMBER(I14)=TRUE,I$6<>""),I14/I$6*100,"") ->  | L14: =IF(AND(ISNUMBER(K14)=TRUE,K$6<>""),K14/K$6*100,"") ->  | N14: =IF(AND(ISNUMBER(M14)=TRUE,M$6<>""),M14/M$6*100,"") ->  | P14: =IF(AND(ISNUMBER(O14)=TRUE,O$6<>""),O14/O$6*100,"") ->  | T14: （計画比） | U14: =IF(AND(ISNUMBER(U13),ISNUMBER(U12))=TRUE,U13-U12,"") -> 
D15: （実績） | F15: =IF(AND(ISNUMBER(E15)=TRUE,E$7<>""),E15/E$7*100,"") ->  | H15: =IF(AND(ISNUMBER(G15)=TRUE,G$7<>""),G15/G$7*100,"") ->  | J15: =IF(AND(ISNUMBER(I15)=TRUE,I$7<>""),I15/I$7*100,"") ->  | L15: =IF(AND(ISNUMBER(K15)=TRUE,K$7<>""),K15/K$7*100,"") ->  | N15: =IF(AND(ISNUMBER(M15)=TRUE,M$7<>""),M15/M$7*100,"") ->  | P15: =IF(AND(ISNUMBER(O15)=TRUE,O$7<>""),O15/O$7*100,"") ->  | T15: （計画）
C16: うちリース料 | D16: （予想） | F16: =IF(AND(ISNUMBER(E16)=TRUE,E$6<>""),E16/E$6*100,"") ->  | H16: =IF(AND(ISNUMBER(G16)=TRUE,G$6<>""),G16/G$6*100,"") ->  | J16: =IF(AND(ISNUMBER(I16)=TRUE,I$6<>""),I16/I$6*100,"") ->  | L16: =IF(AND(ISNUMBER(K16)=TRUE,K$6<>""),K16/K$6*100,"") ->  | N16: =IF(AND(ISNUMBER(M16)=TRUE,M$6<>""),M16/M$6*100,"") ->  | P16: =IF(AND(ISNUMBER(O16)=TRUE,O$6<>""),O16/O$6*100,"") ->  | T16: （実績）
D17: （実績） | F17: =IF(AND(ISNUMBER(E17)=TRUE,E$7<>""),E17/E$7*100,"") ->  | H17: =IF(AND(ISNUMBER(G17)=TRUE,G$7<>""),G17/G$7*100,"") ->  | J17: =IF(AND(ISNUMBER(I17)=TRUE,I$7<>""),I17/I$7*100,"") ->  | L17: =IF(AND(ISNUMBER(K17)=TRUE,K$7<>""),K17/K$7*100,"") ->  | N17: =IF(AND(ISNUMBER(M17)=TRUE,M$7<>""),M17/M$7*100,"") ->  | P17: =IF(AND(ISNUMBER(O17)=TRUE,O$7<>""),O17/O$7*100,"") ->  | T17: （計画比） | U17: =IF(AND(ISNUMBER(U16),ISNUMBER(U15))=TRUE,U16-U15,"") -> 
B18: 営業利益 | D18: （予想） | E18: =IF(E10="","",E10-E12) ->  | F18: =IF(AND(ISNUMBER(E18)=TRUE,E$6<>""),E18/E$6*100,"") ->  | G18: =IF(G10="","",G10-G12) ->  | H18: =IF(AND(ISNUMBER(G18)=TRUE,G$6<>""),G18/G$6*100,"") ->  | I18: =IF(I10="","",I10-I12) ->  | J18: =IF(AND(ISNUMBER(I18)=TRUE,I$6<>""),I18/I$6*100,"") ->  | K18: =IF(K10="","",K10-K12) ->  | L18: =IF(AND(ISNUMBER(K18)=TRUE,K$6<>""),K18/K$6*100,"") ->  | M18: =IF(M10="","",M10-M12) ->  | N18: =IF(AND(ISNUMBER(M18)=TRUE,M$6<>""),M18/M$6*100,"") ->  | O18: =IF(O10="","",O10-O12) ->  | P18: =IF(AND(ISNUMBER(O18)=TRUE,O$6<>""),O18/O$6*100,"") ->  | S18: （ア）合 計 | T18: （計画） | U18: =IF(OR(ISNUMBER(U6),ISNUMBER(U9),ISNUMBER(U12),ISNUMBER(U15))=TRUE,(SUM(U6,-U9,U12,U15)),"") -> 
D19: （実績） | E19: =IF(E11="","",E11-E13) ->  | F19: =IF(AND(ISNUMBER(E19)=TRUE,E$7<>""),E19/E$7*100,"") ->  | G19: =IF(G11="","",G11-G13) ->  | H19: =IF(AND(ISNUMBER(G19)=TRUE,G$7<>""),G19/G$7*100,"") ->  | I19: =IF(I11="","",I11-I13) ->  | J19: =IF(AND(ISNUMBER(I19)=TRUE,I$7<>""),I19/I$7*100,"") ->  | K19: =IF(K11="","",K11-K13) ->  | L19: =IF(AND(ISNUMBER(K19)=TRUE,K$7<>""),K19/K$7*100,"") ->  | M19: =IF(M11="","",M11-M13) ->  | N19: =IF(AND(ISNUMBER(M19)=TRUE,M$7<>""),M19/M$7*100,"") ->  | O19: =IF(O11="","",O11-O13) ->  | P19: =IF(AND(ISNUMBER(O19)=TRUE,O$7<>""),O19/O$7*100,"") ->  | T19: （実績）
B20: 営業外収益 | D20: （予想） | F20: =IF(AND(ISNUMBER(E20)=TRUE,E$6<>""),E20/E$6*100,"") ->  | H20: =IF(AND(ISNUMBER(G20)=TRUE,G$6<>""),G20/G$6*100,"") ->  | J20: =IF(AND(ISNUMBER(I20)=TRUE,I$6<>""),I20/I$6*100,"") ->  | L20: =IF(AND(ISNUMBER(K20)=TRUE,K$6<>""),K20/K$6*100,"") ->  | N20: =IF(AND(ISNUMBER(M20)=TRUE,M$6<>""),M20/M$6*100,"") ->  | P20: =IF(AND(ISNUMBER(O20)=TRUE,O$6<>""),O20/O$6*100,"") ->  | T20: （計画比） | U20: =IF(AND(ISNUMBER(U19),ISNUMBER(U18))=TRUE,U19-U18,"") -> 
D21: （実績） | F21: =IF(AND(ISNUMBER(E21)=TRUE,E$7<>""),E21/E$7*100,"") ->  | H21: =IF(AND(ISNUMBER(G21)=TRUE,G$7<>""),G21/G$7*100,"") ->  | J21: =IF(AND(ISNUMBER(I21)=TRUE,I$7<>""),I21/I$7*100,"") ->  | L21: =IF(AND(ISNUMBER(K21)=TRUE,K$7<>""),K21/K$7*100,"") ->  | N21: =IF(AND(ISNUMBER(M21)=TRUE,M$7<>""),M21/M$7*100,"") ->  | P21: =IF(AND(ISNUMBER(O21)=TRUE,O$7<>""),O21/O$7*100,"") ->  | R21: 長期借入金の年間返済額
B22: 営業外費用 | D22: （予想） | F22: =IF(AND(ISNUMBER(E22)=TRUE,E$6<>""),E22/E$6*100,"") ->  | H22: =IF(AND(ISNUMBER(G22)=TRUE,G$6<>""),G22/G$6*100,"") ->  | J22: =IF(AND(ISNUMBER(I22)=TRUE,I$6<>""),I22/I$6*100,"") ->  | L22: =IF(AND(ISNUMBER(K22)=TRUE,K$6<>""),K22/K$6*100,"") ->  | N22: =IF(AND(ISNUMBER(M22)=TRUE,M$6<>""),M22/M$6*100,"") ->  | P22: =IF(AND(ISNUMBER(O22)=TRUE,O$6<>""),O22/O$6*100,"") ->  | R22: 金融機関名
D23: （実績） | F23: =IF(AND(ISNUMBER(E23)=TRUE,E$7<>""),E23/E$7*100,"") ->  | H23: =IF(AND(ISNUMBER(G23)=TRUE,G$7<>""),G23/G$7*100,"") ->  | J23: =IF(AND(ISNUMBER(I23)=TRUE,I$7<>""),I23/I$7*100,"") ->  | L23: =IF(AND(ISNUMBER(K23)=TRUE,K$7<>""),K23/K$7*100,"") ->  | N23: =IF(AND(ISNUMBER(M23)=TRUE,M$7<>""),M23/M$7*100,"") ->  | P23: =IF(AND(ISNUMBER(O23)=TRUE,O$7<>""),O23/O$7*100,"") -> 
C24: うち支払利息 | D24: （予想） | F24: =IF(AND(ISNUMBER(E24)=TRUE,E$6<>""),E24/E$6*100,"") ->  | H24: =IF(AND(ISNUMBER(G24)=TRUE,G$6<>""),G24/G$6*100,"") ->  | J24: =IF(AND(ISNUMBER(I24)=TRUE,I$6<>""),I24/I$6*100,"") ->  | L24: =IF(AND(ISNUMBER(K24)=TRUE,K$6<>""),K24/K$6*100,"") ->  | N24: =IF(AND(ISNUMBER(M24)=TRUE,M$6<>""),M24/M$6*100,"") ->  | P24: =IF(AND(ISNUMBER(O24)=TRUE,O$6<>""),O24/O$6*100,"") -> 
C25: 割引料 | D25: （実績） | F25: =IF(AND(ISNUMBER(E25)=TRUE,E$7<>""),E25/E$7*100,"") ->  | H25: =IF(AND(ISNUMBER(G25)=TRUE,G$7<>""),G25/G$7*100,"") ->  | J25: =IF(AND(ISNUMBER(I25)=TRUE,I$7<>""),I25/I$7*100,"") ->  | L25: =IF(AND(ISNUMBER(K25)=TRUE,K$7<>""),K25/K$7*100,"") ->  | N25: =IF(AND(ISNUMBER(M25)=TRUE,M$7<>""),M25/M$7*100,"") ->  | P25: =IF(AND(ISNUMBER(O25)=TRUE,O$7<>""),O25/O$7*100,"") -> 
B26: 経常利益 | D26: （予想） | E26: =IF(E18="","",E18+E20-E22) ->  | F26: =IF(AND(ISNUMBER(E26)=TRUE,E$6<>""),E26/E$6*100,"") ->  | G26: =IF(G18="","",G18+G20-G22) ->  | H26: =IF(AND(ISNUMBER(G26)=TRUE,G$6<>""),G26/G$6*100,"") ->  | I26: =IF(I18="","",I18+I20-I22) ->  | J26: =IF(AND(ISNUMBER(I26)=TRUE,I$6<>""),I26/I$6*100,"") ->  | K26: =IF(K18="","",K18+K20-K22) ->  | L26: =IF(AND(ISNUMBER(K26)=TRUE,K$6<>""),K26/K$6*100,"") ->  | M26: =IF(M18="","",M18+M20-M22) ->  | N26: =IF(AND(ISNUMBER(M26)=TRUE,M$6<>""),M26/M$6*100,"") ->  | O26: =IF(O18="","",O18+O20-O22) ->  | P26: =IF(AND(ISNUMBER(O26)=TRUE,O$6<>""),O26/O$6*100,"") -> 
D27: （実績） | E27: =IF(E19="","",E19+E21-E23) ->  | F27: =IF(AND(ISNUMBER(E27)=TRUE,E$7<>""),E27/E$7*100,"") ->  | G27: =IF(G19="","",G19+G21-G23) ->  | H27: =IF(AND(ISNUMBER(G27)=TRUE,G$7<>""),G27/G$7*100,"") ->  | I27: =IF(I19="","",I19+I21-I23) ->  | J27: =IF(AND(ISNUMBER(I27)=TRUE,I$7<>""),I27/I$7*100,"") ->  | K27: =IF(K19="","",K19+K21-K23) ->  | L27: =IF(AND(ISNUMBER(K27)=TRUE,K$7<>""),K27/K$7*100,"") ->  | M27: =IF(M19="","",M19+M21-M23) ->  | N27: =IF(AND(ISNUMBER(M27)=TRUE,M$7<>""),M27/M$7*100,"") ->  | O27: =IF(O19="","",O19+O21-O23) ->  | P27: =IF(AND(ISNUMBER(O27)=TRUE,O$7<>""),O27/O$7*100,"") -> 
B28: 特別損益 | D28: （予想） | F28: =IF(AND(ISNUMBER(E28)=TRUE,E$6<>""),E28/E$6*100,"") ->  | H28: =IF(AND(ISNUMBER(G28)=TRUE,G$6<>""),G28/G$6*100,"") ->  | J28: =IF(AND(ISNUMBER(I28)=TRUE,I$6<>""),I28/I$6*100,"") ->  | L28: =IF(AND(ISNUMBER(K28)=TRUE,K$6<>""),K28/K$6*100,"") ->  | N28: =IF(AND(ISNUMBER(M28)=TRUE,M$6<>""),M28/M$6*100,"") ->  | P28: =IF(AND(ISNUMBER(O28)=TRUE,O$6<>""),O28/O$6*100,"") ->  | S28: （イ）合 計 | U28: =SUM(U22:U27) -> 0 | V28: 0 | W28: 0 | X28: 0 | Y28: 0 | Z28: 0
D29: （実績） | F29: =IF(AND(ISNUMBER(E29)=TRUE,E$7<>""),E29/E$7*100,"") ->  | H29: =IF(AND(ISNUMBER(G29)=TRUE,G$7<>""),G29/G$7*100,"") ->  | J29: =IF(AND(ISNUMBER(I29)=TRUE,I$7<>""),I29/I$7*100,"") ->  | L29: =IF(AND(ISNUMBER(K29)=TRUE,K$7<>""),K29/K$7*100,"") ->  | N29: =IF(AND(ISNUMBER(M29)=TRUE,M$7<>""),M29/M$7*100,"") ->  | P29: =IF(AND(ISNUMBER(O29)=TRUE,O$7<>""),O29/O$7*100,"") ->  | R29: 償還計画 | S29: （ア）償還源資 | T29: （計画） | U29: =IF(ISNUMBER(U18)=TRUE,U18,"") -> 
B30: 税引前当期利益 | D30: （予想） | E30: =IF(E26="","",E26+E28) ->  | F30: =IF(AND(ISNUMBER(E30)=TRUE,E$6<>""),E30/E$6*100,"") ->  | G30: =IF(G26="","",G26+G28) ->  | H30: =IF(AND(ISNUMBER(G30)=TRUE,G$6<>""),G30/G$6*100,"") ->  | I30: =IF(I26="","",I26+I28) ->  | J30: =IF(AND(ISNUMBER(I30)=TRUE,I$6<>""),I30/I$6*100,"") ->  | K30: =IF(K26="","",K26+K28) ->  | L30: =IF(AND(ISNUMBER(K30)=TRUE,K$6<>""),K30/K$6*100,"") ->  | M30: =IF(M26="","",M26+M28) ->  | N30: =IF(AND(ISNUMBER(M30)=TRUE,M$6<>""),M30/M$6*100,"") ->  | O30: =IF(O26="","",O26+O28) ->  | P30: =IF(AND(ISNUMBER(O30)=TRUE,O$6<>""),O30/O$6*100,"") ->  | T30: （実績）
D31: （実績） | E31: =IF(E27="","",E27+E29) ->  | F31: =IF(AND(ISNUMBER(E31)=TRUE,E$7<>""),E31/E$7*100,"") ->  | G31: =IF(G27="","",G27+G29) ->  | H31: =IF(AND(ISNUMBER(G31)=TRUE,G$7<>""),G31/G$7*100,"") ->  | I31: =IF(I27="","",I27+I29) ->  | J31: =IF(AND(ISNUMBER(I31)=TRUE,I$7<>""),I31/I$7*100,"") ->  | K31: =IF(K27="","",K27+K29) ->  | L31: =IF(AND(ISNUMBER(K31)=TRUE,K$7<>""),K31/K$7*100,"") ->  | M31: =IF(M27="","",M27+M29) ->  | N31: =IF(AND(ISNUMBER(M31)=TRUE,M$7<>""),M31/M$7*100,"") ->  | O31: =IF(O27="","",O27+O29) ->  | P31: =IF(AND(ISNUMBER(O31)=TRUE,O$7<>""),O31/O$7*100,"") ->  | T31: （計画比） | U31: =IF(AND(ISNUMBER(U30),ISNUMBER(U29))=TRUE,U30-U29,"") -> 
B32: 税 金 | D32: （予想） | F32: =IF(AND(ISNUMBER(E32)=TRUE,E$6<>""),E32/E$6*100,"") ->  | H32: =IF(AND(ISNUMBER(G32)=TRUE,G$6<>""),G32/G$6*100,"") ->  | J32: =IF(AND(ISNUMBER(I32)=TRUE,I$6<>""),I32/I$6*100,"") ->  | L32: =IF(AND(ISNUMBER(K32)=TRUE,K$6<>""),K32/K$6*100,"") ->  | N32: =IF(AND(ISNUMBER(M32)=TRUE,M$6<>""),M32/M$6*100,"") ->  | P32: =IF(AND(ISNUMBER(O32)=TRUE,O$6<>""),O32/O$6*100,"") ->  | S32: （イ）要償還額 | T32: （計画） | V32: =IF(ISNUMBER(V28)=TRUE,V28,"") -> 0 | W32: =IF(ISNUMBER(W28)=TRUE,W28,"") -> 0 | X32: =IF(ISNUMBER(X28)=TRUE,X28,"") -> 0 | Y32: =IF(ISNUMBER(Y28)=TRUE,Y28,"") -> 0 | Z32: =IF(ISNUMBER(Z28)=TRUE,Z28,"") -> 0
D33: （実績） | F33: =IF(AND(ISNUMBER(E33)=TRUE,E$7<>""),E33/E$7*100,"") ->  | H33: =IF(AND(ISNUMBER(G33)=TRUE,G$7<>""),G33/G$7*100,"") ->  | J33: =IF(AND(ISNUMBER(I33)=TRUE,I$7<>""),I33/I$7*100,"") ->  | L33: =IF(AND(ISNUMBER(K33)=TRUE,K$7<>""),K33/K$7*100,"") ->  | N33: =IF(AND(ISNUMBER(M33)=TRUE,M$7<>""),M33/M$7*100,"") ->  | P33: =IF(AND(ISNUMBER(O33)=TRUE,O$7<>""),O33/O$7*100,"") ->  | T33: （実績） | U33: =IF(ISNUMBER(U28)=TRUE,U28,"") -> 0
B34: 当期利益 | D34: （予想） | E34: =IF(E30="","",E30-E32) ->  | F34: =IF(AND(ISNUMBER(E34)=TRUE,E$6<>""),E34/E$6*100,"") ->  | G34: =IF(G30="","",G30-G32) ->  | H34: =IF(AND(ISNUMBER(G34)=TRUE,G$6<>""),G34/G$6*100,"") ->  | I34: =IF(I30="","",I30-I32) ->  | J34: =IF(AND(ISNUMBER(I34)=TRUE,I$6<>""),I34/I$6*100,"") ->  | K34: =IF(K30="","",K30-K32) ->  | L34: =IF(AND(ISNUMBER(K34)=TRUE,K$6<>""),K34/K$6*100,"") ->  | M34: =IF(M30="","",M30-M32) ->  | N34: =IF(AND(ISNUMBER(M34)=TRUE,M$6<>""),M34/M$6*100,"") ->  | O34: =IF(O30="","",O30-O32) ->  | P34: =IF(AND(ISNUMBER(O34)=TRUE,O$6<>""),O34/O$6*100,"") ->  | T34: （計画比） | U34: =IF(AND(ISNUMBER(U33),ISNUMBER(U32))=TRUE,U33-U32,"") -> 
D35: （実績） | E35: =IF(E31="","",E31-E33) ->  | F35: =IF(AND(ISNUMBER(E35)=TRUE,E$7<>""),E35/E$7*100,"") ->  | G35: =IF(G31="","",G31-G33) ->  | H35: =IF(AND(ISNUMBER(G35)=TRUE,G$7<>""),G35/G$7*100,"") ->  | I35: =IF(I31="","",I31-I33) ->  | J35: =IF(AND(ISNUMBER(I35)=TRUE,I$7<>""),I35/I$7*100,"") ->  | K35: =IF(K31="","",K31-K33) ->  | L35: =IF(AND(ISNUMBER(K35)=TRUE,K$7<>""),K35/K$7*100,"") ->  | M35: =IF(M31="","",M31-M33) ->  | N35: =IF(AND(ISNUMBER(M35)=TRUE,M$7<>""),M35/M$7*100,"") ->  | O35: =IF(O31="","",O31-O33) ->  | P35: =IF(AND(ISNUMBER(O35)=TRUE,O$7<>""),O35/O$7*100,"") ->  | R35: 余 力 | S35: 差 引 | T35: （計画） | U35: =IF(AND(U29<>"",U32<>""),U29-U32,"") -> 
B36: 減価償却費 | D36: （予想） | F36: =IF(AND(ISNUMBER(E36)=TRUE,E$6<>""),E36/E$6*100,"") ->  | H36: =IF(AND(ISNUMBER(G36)=TRUE,G$6<>""),G36/G$6*100,"") ->  | J36: =IF(AND(ISNUMBER(I36)=TRUE,I$6<>""),I36/I$6*100,"") ->  | L36: =IF(AND(ISNUMBER(K36)=TRUE,K$6<>""),K36/K$6*100,"") ->  | N36: =IF(AND(ISNUMBER(M36)=TRUE,M$6<>""),M36/M$6*100,"") ->  | P36: =IF(AND(ISNUMBER(O36)=TRUE,O$6<>""),O36/O$6*100,"") ->  | T36: （実績）
D37: （実績） | F37: =IF(AND(ISNUMBER(E37)=TRUE,E$7<>""),E37/E$7*100,"") ->  | H37: =IF(AND(ISNUMBER(G37)=TRUE,G$7<>""),G37/G$7*100,"") ->  | J37: =IF(AND(ISNUMBER(I37)=TRUE,I$7<>""),I37/I$7*100,"") ->  | L37: =IF(AND(ISNUMBER(K37)=TRUE,K$7<>""),K37/K$7*100,"") ->  | N37: =IF(AND(ISNUMBER(M37)=TRUE,M$7<>""),M37/M$7*100,"") ->  | P37: =IF(AND(ISNUMBER(O37)=TRUE,O$7<>""),O37/O$7*100,"") ->  | T37: （計画比） | U37: =IF(AND(ISNUMBER(U36),ISNUMBER(U35))=TRUE,U36-U35,"") -> 
R38: 長期借入金残高
R45: 特記事項

Sheet 収支予想表・償還計画表【記入】 (hidden)
B2: 収支予想表 | M2: 作成日： | N2: 2021-04-01 | R2: 償還計画表 | X2: お取引先名： | Y2: 株式会社●●商会 | AB2: 2 | AC2: 千円
AB3: 3 | AC3: 百万円
M4: 金額単位： | O4: 百万円 | Y4: 金額単位： | Z4: 百万円
D5: 年度 | E5: 直近期 | F5: 比率 | G5: 2022-03-01 | H5: 比率 | I5: 2023-03-01 | J5: 比率 | K5: 2024-03-01 | L5: 比率 | M5: 2025-03-01 | N5: 比率 | O5: 2026-03-01 | P5: 比率 | U5: 直近期 | V5: =IF(ISBLANK(G5),"",G5) -> 2022-03-01 | W5: =IF(ISBLANK(I5),"",I5) -> 2023-03-01 | X5: =IF(ISBLANK(K5),"",K5) -> 2024-03-01 | Y5: =IF(ISBLANK(M5),"",M5) -> 2025-03-01 | Z5: =IF(ISBLANK(O5),"",O5) -> 2026-03-01
B6: 売 上 高 | D6: （予想） | F6: =IF(AND(ISNUMBER(E6)=TRUE,E$6<>""),E6/E$6*100,"") ->  | G6: 480 | H6: =IF(AND(ISNUMBER(G6)=TRUE,G$6<>""),G6/G$6*100,"") -> 100 | I6: 480 | J6: =IF(AND(ISNUMBER(I6)=TRUE,I$6<>""),I6/I$6*100,"") -> 100 | K6: 480 | L6: =IF(AND(ISNUMBER(K6)=TRUE,K$6<>""),K6/K$6*100,"") -> 100 | M6: 480 | N6: =IF(AND(ISNUMBER(M6)=TRUE,M$6<>""),M6/M$6*100,"") -> 100 | O6: 480 | P6: =IF(AND(ISNUMBER(O6)=TRUE,O$6<>""),O6/O$6*100,"") -> 100 | R6: 償還原資 | S6: 当期利益 | T6: （計画） | U6: =IF(ISNUMBER(E34)=TRUE,E34,"") ->  | V6: =IF(ISNUMBER(G34)=TRUE,G34,"") -> 24 | W6: =IF(ISNUMBER(I34)=TRUE,I34,"") -> 28 | X6: =IF(ISNUMBER(K34)=TRUE,K34,"") -> 32 | Y6: =IF(ISNUMBER(M34)=TRUE,M34,"") -> 32 | Z6: =IF(ISNUMBER(O34)=TRUE,O34,"") -> 34
D7: （実績） | E7: 480 | F7: =IF(AND(ISNUMBER(E7)=TRUE,E$7<>""),E7/E$7*100,"") -> 100 | H7: =IF(AND(ISNUMBER(G7)=TRUE,G$7<>""),G7/G$7*100,"") ->  | J7: =IF(AND(ISNUMBER(I7)=TRUE,I$7<>""),I7/I$7*100,"") ->  | L7: =IF(AND(ISNUMBER(K7)=TRUE,K$7<>""),K7/K$7*100,"") ->  | N7: =IF(AND(ISNUMBER(M7)=TRUE,M$7<>""),M7/M$7*100,"") ->  | P7: =IF(AND(ISNUMBER(O7)=TRUE,O$7<>""),O7/O$7*100,"") ->  | T7: （実績） | U7: =IF(ISNUMBER(E35)=TRUE,E35,"") -> -5 | V7: =IF(ISNUMBER(G35)=TRUE,G35,"") ->  | W7: =IF(ISNUMBER(I35)=TRUE,I35,"") ->  | X7: =IF(ISNUMBER(K35)=TRUE,K35,"") ->  | Y7: =IF(ISNUMBER(M35)=TRUE,M35,"") ->  | Z7: =IF(ISNUMBER(O35)=TRUE,O35,"") -> 
B8: 売上原価 | D8: （予想） | F8: =IF(AND(ISNUMBER(E8)=TRUE,E$6<>""),E8/E$6*100,"") ->  | G8: 320 | H8: =IF(AND(ISNUMBER(G8)=TRUE,G$6<>""),G8/G$6*100,"") -> 66.66666667 | I8: 316 | J8: =IF(AND(ISNUMBER(I8)=TRUE,I$6<>""),I8/I$6*100,"") -> 65.83333333 | K8: 313 | L8: =IF(AND(ISNUMBER(K8)=TRUE,K$6<>""),K8/K$6*100,"") -> 65.20833333 | M8: 313 | N8: =IF(AND(ISNUMBER(M8)=TRUE,M$6<>""),M8/M$6*100,"") -> 65.20833333 | O8: 313 | P8: =IF(AND(ISNUMBER(O8)=TRUE,O$6<>""),O8/O$6*100,"") -> 65.20833333 | T8: （計画比） | U8: =IF(AND(ISNUMBER(U7),ISNUMBER(U6))=TRUE,U7-U6,"") -> 
D9: （実績） | E9: 348 | F9: =IF(AND(ISNUMBER(E9)=TRUE,E$7<>""),E9/E$7*100,"") -> 72.5 | H9: =IF(AND(ISNUMBER(G9)=TRUE,G$7<>""),G9/G$7*100,"") ->  | J9: =IF(AND(ISNUMBER(I9)=TRUE,I$7<>""),I9/I$7*100,"") ->  | L9: =IF(AND(ISNUMBER(K9)=TRUE,K$7<>""),K9/K$7*100,"") ->  | N9: =IF(AND(ISNUMBER(M9)=TRUE,M$7<>""),M9/M$7*100,"") ->  | P9: =IF(AND(ISNUMBER(O9)=TRUE,O$7<>""),O9/O$7*100,"") ->  | S9: 配当・役員賞与 | T9: （計画） | V9: 0 | W9: 0 | X9: 0 | Y9: 0 | Z9: 0
B10: 売上総利益 | D10: （予想） | E10: =IF(E6="","",E6-E8) ->  | F10: =IF(AND(ISNUMBER(E10)=TRUE,E$6<>""),E10/E$6*100,"") ->  | G10: =IF(G6="","",G6-G8) -> 160 | H10: =IF(AND(ISNUMBER(G10)=TRUE,G$6<>""),G10/G$6*100,"") -> 33.33333333 | I10: =IF(I6="","",I6-I8) -> 164 | J10: =IF(AND(ISNUMBER(I10)=TRUE,I$6<>""),I10/I$6*100,"") -> 34.16666667 | K10: =IF(K6="","",K6-K8) -> 167 | L10: =IF(AND(ISNUMBER(K10)=TRUE,K$6<>""),K10/K$6*100,"") -> 34.79166667 | M10: =IF(M6="","",M6-M8) -> 167 | N10: =IF(AND(ISNUMBER(M10)=TRUE,M$6<>""),M10/M$6*100,"") -> 34.79166667 | O10: =IF(O6="","",O6-O8) -> 167 | P10: =IF(AND(ISNUMBER(O10)=TRUE,O$6<>""),O10/O$6*100,"") -> 34.79166667 | T10: （実績） | U10: 0
D11: （実績） | E11: =IF(E7="","",E7-E9) -> 132 | F11: =IF(AND(ISNUMBER(E11)=TRUE,E$7<>""),E11/E$7*100,"") -> 27.5 | G11: =IF(G7="","",G7-G9) ->  | H11: =IF(AND(ISNUMBER(G11)=TRUE,G$7<>""),G11/G$7*100,"") ->  | I11: =IF(I7="","",I7-I9) ->  | J11: =IF(AND(ISNUMBER(I11)=TRUE,I$7<>""),I11/I$7*100,"") ->  | K11: =IF(K7="","",K7-K9) ->  | L11: =IF(AND(ISNUMBER(K11)=TRUE,K$7<>""),K11/K$7*100,"") ->  | M11: =IF(M7="","",M7-M9) ->  | N11: =IF(AND(ISNUMBER(M11)=TRUE,M$7<>""),M11/M$7*100,"") ->  | O11: =IF(O7="","",O7-O9) ->  | P11: =IF(AND(ISNUMBER(O11)=TRUE,O$7<>""),O11/O$7*100,"") ->  | T11: （計画比） | U11: =IF(AND(ISNUMBER(U10),ISNUMBER(U9))=TRUE,U10-U9,"") -> 
B12: 販売費及び | D12: （予想） | F12: =IF(AND(ISNUMBER(E12)=TRUE,E$6<>""),E12/E$6*100,"") ->  | G12: 126 | H12: =IF(AND(ISNUMBER(G12)=TRUE,G$6<>""),G12/G$6*100,"") -> 26.25 | I12: 125 | J12: =IF(AND(ISNUMBER(I12)=TRUE,I$6<>""),I12/I$6*100,"") -> 26.04166667 | K12: 125 | L12: =IF(AND(ISNUMBER(K12)=TRUE,K$6<>""),K12/K$6*100,"") -> 26.04166667 | M12: 125 | N12: =IF(AND(ISNUMBER(M12)=TRUE,M$6<>""),M12/M$6*100,"") -> 26.04166667 | O12: 124 | P12: =IF(AND(ISNUMBER(O12)=TRUE,O$6<>""),O12/O$6*100,"") -> 25.83333333 | S12: 減価償却費 | T12: （計画） | U12: =IF(ISNUMBER(E36)=TRUE,E36,"") ->  | V12: =IF(ISNUMBER(G36)=TRUE,G36,"") -> 15 | W12: =IF(ISNUMBER(I36)=TRUE,I36,"") -> 14 | X12: =IF(ISNUMBER(K36)=TRUE,K36,"") -> 13 | Y12: =IF(ISNUMBER(M36)=TRUE,M36,"") -> 13 | Z12: =IF(ISNUMBER(O36)=TRUE,O36,"") -> 13
B13: 一般管理費 | D13: （実績） | E13: 126 | F13: =IF(AND(ISNUMBER(E13)=TRUE,E$7<>""),E13/E$7*100,"") -> 26.25 | H13: =IF(AND(ISNUMBER(G13)=TRUE,G$7<>""),G13/G$7*100,"") ->  | J13: =IF(AND(ISNUMBER(I13)=TRUE,I$7<>""),I13/I$7*100,"") ->  | L13: =IF(AND(ISNUMBER(K13)=TRUE,K$7<>""),K13/K$7*100,"") ->  | N13: =IF(AND(ISNUMBER(M13)=TRUE,M$7<>""),M13/M$7*100,"") ->  | P13: =IF(AND(ISNUMBER(O13)=TRUE,O$7<>""),O13/O$7*100,"") ->  | T13: （実績） | U13: =IF(ISNUMBER(E37)=TRUE,E37,"") -> 15 | V13: =IF(ISNUMBER(G37)=TRUE,G37,"") ->  | W13: =IF(ISNUMBER(I37)=TRUE,I37,"") ->  | X13: =IF(ISNUMBER(K37)=TRUE,K37,"") ->  | Y13: =IF(ISNUMBER(M37)=TRUE,M37,"") ->  | Z13: =IF(ISNUMBER(O37)=TRUE,O37,"") -> 
C14: うち人件費 | D14: （予想） | F14: =IF(AND(ISNUMBER(E14)=TRUE,E$6<>""),E14/E$6*100,"") ->  | G14: 64 | H14: =IF(AND(ISNUMBER(G14)=TRUE,G$6<>""),G14/G$6*100,"") -> 13.33333333 | I14: 64 | J14: =IF(AND(ISNUMBER(I14)=TRUE,I$6<>""),I14/I$6*100,"") -> 13.33333333 | K14: 62 | L14: =IF(AND(ISNUMBER(K14)=TRUE,K$6<>""),K14/K$6*100,"") -> 12.91666667 | M14: 63 | N14: =IF(AND(ISNUMBER(M14)=TRUE,M$6<>""),M14/M$6*100,"") -> 13.125 | O14: 63 | P14: =IF(AND(ISNUMBER(O14)=TRUE,O$6<>""),O14/O$6*100,"") -> 13.125 | T14: （計画比） | U14: =IF(AND(ISNUMBER(U13),ISNUMBER(U12))=TRUE,U13-U12,"") -> 
D15: （実績） | E15: 65 | F15: =IF(AND(ISNUMBER(E15)=TRUE,E$7<>""),E15/E$7*100,"") -> 13.54166667 | H15: =IF(AND(ISNUMBER(G15)=TRUE,G$7<>""),G15/G$7*100,"") ->  | J15: =IF(AND(ISNUMBER(I15)=TRUE,I$7<>""),I15/I$7*100,"") ->  | L15: =IF(AND(ISNUMBER(K15)=TRUE,K$7<>""),K15/K$7*100,"") ->  | N15: =IF(AND(ISNUMBER(M15)=TRUE,M$7<>""),M15/M$7*100,"") ->  | P15: =IF(AND(ISNUMBER(O15)=TRUE,O$7<>""),O15/O$7*100,"") ->  | T15: （計画）
C16: うちリース料 | D16: （予想） | F16: =IF(AND(ISNUMBER(E16)=TRUE,E$6<>""),E16/E$6*100,"") ->  | G16: 0 | H16: =IF(AND(ISNUMBER(G16)=TRUE,G$6<>""),G16/G$6*100,"") -> 0 | I16: 0 | J16: =IF(AND(ISNUMBER(I16)=TRUE,I$6<>""),I16/I$6*100,"") -> 0 | K16: 0 | L16: =IF(AND(ISNUMBER(K16)=TRUE,K$6<>""),K16/K$6*100,"") -> 0 | M16: 0 | N16: =IF(AND(ISNUMBER(M16)=TRUE,M$6<>""),M16/M$6*100,"") -> 0 | O16: 0 | P16: =IF(AND(ISNUMBER(O16)=TRUE,O$6<>""),O16/O$6*100,"") -> 0 | T16: （実績）
D17: （実績） | E17: 0 | F17: =IF(AND(ISNUMBER(E17)=TRUE,E$7<>""),E17/E$7*100,"") -> 0 | H17: =IF(AND(ISNUMBER(G17)=TRUE,G$7<>""),G17/G$7*100,"") ->  | J17: =IF(AND(ISNUMBER(I17)=TRUE,I$7<>""),I17/I$7*100,"") ->  | L17: =IF(AND(ISNUMBER(K17)=TRUE,K$7<>""),K17/K$7*100,"") ->  | N17: =IF(AND(ISNUMBER(M17)=TRUE,M$7<>""),M17/M$7*100,"") ->  | P17: =IF(AND(ISNUMBER(O17)=TRUE,O$7<>""),O17/O$7*100,"") ->  | T17: （計画比） | U17: =IF(AND(ISNUMBER(U16),ISNUMBER(U15))=TRUE,U16-U15,"") -> 
B18: 営業利益 | D18: （予想） | E18: =IF(E10="","",E10-E12) ->  | F18: =IF(AND(ISNUMBER(E18)=TRUE,E$6<>""),E18/E$6*100,"") ->  | G18: =IF(G10="","",G10-G12) -> 34 | H18: =IF(AND(ISNUMBER(G18)=TRUE,G$6<>""),G18/G$6*100,"") -> 7.083333333 | I18: =IF(I10="","",I10-I12) -> 39 | J18: =IF(AND(ISNUMBER(I18)=TRUE,I$6<>""),I18/I$6*100,"") -> 8.125 | K18: =IF(K10="","",K10-K12) -> 42 | L18: =IF(AND(ISNUMBER(K18)=TRUE,K$6<>""),K18/K$6*100,"") -> 8.75 | M18: =IF(M10="","",M10-M12) -> 42 | N18: =IF(AND(ISNUMBER(M18)=TRUE,M$6<>""),M18/M$6*100,"") -> 8.75 | O18: =IF(O10="","",O10-O12) -> 43 | P18: =IF(AND(ISNUMBER(O18)=TRUE,O$6<>""),O18/O$6*100,"") -> 8.958333333 | S18: （ア）合 計 | T18: （計画） | U18: =IF(OR(ISNUMBER(U6),ISNUMBER(U9),ISNUMBER(U12),ISNUMBER(U15))=TRUE,(SUM(U6,-U9,U12,U15)),"") ->  | V18: 39 | W18: 42 | X18: 45 | Y18: 45 | Z18: 47
D19: （実績） | E19: =IF(E11="","",E11-E13) -> 6 | F19: =IF(AND(ISNUMBER(E19)=TRUE,E$7<>""),E19/E$7*100,"") -> 1.25 | G19: =IF(G11="","",G11-G13) ->  | H19: =IF(AND(ISNUMBER(G19)=TRUE,G$7<>""),G19/G$7*100,"") ->  | I19: =IF(I11="","",I11-I13) ->  | J19: =IF(AND(ISNUMBER(I19)=TRUE,I$7<>""),I19/I$7*100,"") ->  | K19: =IF(K11="","",K11-K13) ->  | L19: =IF(AND(ISNUMBER(K19)=TRUE,K$7<>""),K19/K$7*100,"") ->  | M19: =IF(M11="","",M11-M13) ->  | N19: =IF(AND(ISNUMBER(M19)=TRUE,M$7<>""),M19/M$7*100,"") ->  | O19: =IF(O11="","",O11-O13) ->  | P19: =IF(AND(ISNUMBER(O19)=TRUE,O$7<>""),O19/O$7*100,"") ->  | T19: （実績） | U19: 10
B20: 営業外収益 | D20: （予想） | F20: =IF(AND(ISNUMBER(E20)=TRUE,E$6<>""),E20/E$6*100,"") ->  | G20: 4 | H20: =IF(AND(ISNUMBER(G20)=TRUE,G$6<>""),G20/G$6*100,"") -> 0.8333333333 | I20: 4 | J20: =IF(AND(ISNUMBER(I20)=TRUE,I$6<>""),I20/I$6*100,"") -> 0.8333333333 | K20: 4 | L20: =IF(AND(ISNUMBER(K20)=TRUE,K$6<>""),K20/K$6*100,"") -> 0.8333333333 | M20: 4 | N20: =IF(AND(ISNUMBER(M20)=TRUE,M$6<>""),M20/M$6*100,"") -> 0.8333333333 | O20: 4 | P20: =IF(AND(ISNUMBER(O20)=TRUE,O$6<>""),O20/O$6*100,"") -> 0.8333333333 | T20: （計画比） | U20: =IF(AND(ISNUMBER(U19),ISNUMBER(U18))=TRUE,U19-U18,"") -> 
D21: （実績） | E21: 4 | F21: =IF(AND(ISNUMBER(E21)=TRUE,E$7<>""),E21/E$7*100,"") -> 0.8333333333 | H21: =IF(AND(ISNUMBER(G21)=TRUE,G$7<>""),G21/G$7*100,"") ->  | J21: =IF(AND(ISNUMBER(I21)=TRUE,I$7<>""),I21/I$7*100,"") ->  | L21: =IF(AND(ISNUMBER(K21)=TRUE,K$7<>""),K21/K$7*100,"") ->  | N21: =IF(AND(ISNUMBER(M21)=TRUE,M$7<>""),M21/M$7*100,"") ->  | P21: =IF(AND(ISNUMBER(O21)=TRUE,O$7<>""),O21/O$7*100,"") ->  | R21: 長期借入金の年間返済額
B22: 営業外費用 | D22: （予想） | F22: =IF(AND(ISNUMBER(E22)=TRUE,E$6<>""),E22/E$6*100,"") ->  | G22: 14 | H22: =IF(AND(ISNUMBER(G22)=TRUE,G$6<>""),G22/G$6*100,"") -> 2.916666667 | I22: 15 | J22: =IF(AND(ISNUMBER(I22)=TRUE,I$6<>""),I22/I$6*100,"") -> 3.125 | K22: 14 | L22: =IF(AND(ISNUMBER(K22)=TRUE,K$6<>""),K22/K$6*100,"") -> 2.916666667 | M22: 14 | N22: =IF(AND(ISNUMBER(M22)=TRUE,M$6<>""),M22/M$6*100,"") -> 2.916666667 | O22: 13 | P22: =IF(AND(ISNUMBER(O22)=TRUE,O$6<>""),O22/O$6*100,"") -> 2.708333333 | R22: 金融機関名 | S22: 肥後銀行本店 | V22: 2 | W22: 2 | X22: 2 | Y22: 2 | Z22: 2
D23: （実績） | E23: 15 | F23: =IF(AND(ISNUMBER(E23)=TRUE,E$7<>""),E23/E$7*100,"") -> 3.125 | H23: =IF(AND(ISNUMBER(G23)=TRUE,G$7<>""),G23/G$7*100,"") ->  | J23: =IF(AND(ISNUMBER(I23)=TRUE,I$7<>""),I23/I$7*100,"") ->  | L23: =IF(AND(ISNUMBER(K23)=TRUE,K$7<>""),K23/K$7*100,"") ->  | N23: =IF(AND(ISNUMBER(M23)=TRUE,M$7<>""),M23/M$7*100,"") ->  | P23: =IF(AND(ISNUMBER(O23)=TRUE,O$7<>""),O23/O$7*100,"") ->  | S23: 肥後銀行本店 | U23: 10 | V23: 10 | W23: 10 | X23: 10 | Y23: 10 | Z23: 10
C24: うち支払利息 割引料 | D24: （予想） | F24: =IF(AND(ISNUMBER(E24)=TRUE,E$6<>""),E24/E$6*100,"") ->  | G24: 4 | H24: =IF(AND(ISNUMBER(G24)=TRUE,G$6<>""),G24/G$6*100,"") -> 0.8333333333 | I24: 4 | J24: =IF(AND(ISNUMBER(I24)=TRUE,I$6<>""),I24/I$6*100,"") -> 0.8333333333 | K24: 3 | L24: =IF(AND(ISNUMBER(K24)=TRUE,K$6<>""),K24/K$6*100,"") -> 0.625 | M24: 2 | N24: =IF(AND(ISNUMBER(M24)=TRUE,M$6<>""),M24/M$6*100,"") -> 0.4166666667 | O24: 2 | P24: =IF(AND(ISNUMBER(O24)=TRUE,O$6<>""),O24/O$6*100,"") -> 0.4166666667 | S24: ●●銀行●●支店 | U24: 5 | V24: 5 | W24: 5 | X24: 5 | Y24: 5 | Z24: 5
D25: （実績） | E25: 5 | F25: =IF(AND(ISNUMBER(E25)=TRUE,E$7<>""),E25/E$7*100,"") -> 1.041666667 | H25: =IF(AND(ISNUMBER(G25)=TRUE,G$7<>""),G25/G$7*100,"") ->  | J25: =IF(AND(ISNUMBER(I25)=TRUE,I$7<>""),I25/I$7*100,"") ->  | L25: =IF(AND(ISNUMBER(K25)=TRUE,K$7<>""),K25/K$7*100,"") ->  | N25: =IF(AND(ISNUMBER(M25)=TRUE,M$7<>""),M25/M$7*100,"") ->  | P25: =IF(AND(ISNUMBER(O25)=TRUE,O$7<>""),O25/O$7*100,"") ->  | S25: ●●銀行●●支店 | U25: 5 | V25: 5 | W25: 5 | X25: 5 | Y25: 5 | Z25: 5
B26: 経常利益 | D26: （予想） | E26: =IF(E18="","",E18+E20-E22) ->  | F26: =IF(AND(ISNUMBER(E26)=TRUE,E$6<>""),E26/E$6*100,"") ->  | G26: =IF(G18="","",G18+G20-G22) -> 24 | H26: =IF(AND(ISNUMBER(G26)=TRUE,G$6<>""),G26/G$6*100,"") -> 5 | I26: =IF(I18="","",I18+I20-I22) -> 28 | J26: =IF(AND(ISNUMBER(I26)=TRUE,I$6<>""),I26/I$6*100,"") -> 5.833333333 | K26: =IF(K18="","",K18+K20-K22) -> 32 | L26: =IF(AND(ISNUMBER(K26)=TRUE,K$6<>""),K26/K$6*100,"") -> 6.666666667 | M26: =IF(M18="","",M18+M20-M22) -> 32 | N26: =IF(AND(ISNUMBER(M26)=TRUE,M$6<>""),M26/M$6*100,"") -> 6.666666667 | O26: =IF(O18="","",O18+O20-O22) -> 34 | P26: =IF(AND(ISNUMBER(O26)=TRUE,O$6<>""),O26/O$6*100,"") -> 7.083333333
D27: （実績） | E27: =IF(E19="","",E19+E21-E23) -> -5 | F27: =IF(AND(ISNUMBER(E27)=TRUE,E$7<>""),E27/E$7*100,"") -> -1.041666667 | G27: =IF(G19="","",G19+G21-G23) ->  | H27: =IF(AND(ISNUMBER(G27)=TRUE,G$7<>""),G27/G$7*100,"") ->  | I27: =IF(I19="","",I19+I21-I23) ->  | J27: =IF(AND(ISNUMBER(I27)=TRUE,I$7<>""),I27/I$7*100,"") ->  | K27: =IF(K19="","",K19+K21-K23) ->  | L27: =IF(AND(ISNUMBER(K27)=TRUE,K$7<>""),K27/K$7*100,"") ->  | M27: =IF(M19="","",M19+M21-M23) ->  | N27: =IF(AND(ISNUMBER(M27)=TRUE,M$7<>""),M27/M$7*100,"") ->  | O27: =IF(O19="","",O19+O21-O23) ->  | P27: =IF(AND(ISNUMBER(O27)=TRUE,O$7<>""),O27/O$7*100,"") -> 
B28: 特別損益 | D28: （予想） | F28: =IF(AND(ISNUMBER(E28)=TRUE,E$6<>""),E28/E$6*100,"") ->  | G28: 0 | H28: =IF(AND(ISNUMBER(G28)=TRUE,G$6<>""),G28/G$6*100,"") -> 0 | I28: 0 | J28: =IF(AND(ISNUMBER(I28)=TRUE,I$6<>""),I28/I$6*100,"") -> 0 | K28: 0 | L28: =IF(AND(ISNUMBER(K28)=TRUE,K$6<>""),K28/K$6*100,"") -> 0 | M28: 0 | N28: =IF(AND(ISNUMBER(M28)=TRUE,M$6<>""),M28/M$6*100,"") -> 0 | O28: 0 | P28: =IF(AND(ISNUMBER(O28)=TRUE,O$6<>""),O28/O$6*100,"") -> 0 | S28: （イ）合 計 | U28: =SUM(U22:U27) -> 20 | V28: 22 | W28: 22 | X28: 22 | Y28: 22 | Z28: 22
D29: （実績） | E29: 0 | F29: =IF(AND(ISNUMBER(E29)=TRUE,E$7<>""),E29/E$7*100,"") -> 0 | H29: =IF(AND(ISNUMBER(G29)=TRUE,G$7<>""),G29/G$7*100,"") ->  | J29: =IF(AND(ISNUMBER(I29)=TRUE,I$7<>""),I29/I$7*100,"") ->  | L29: =IF(AND(ISNUMBER(K29)=TRUE,K$7<>""),K29/K$7*100,"") ->  | N29: =IF(AND(ISNUMBER(M29)=TRUE,M$7<>""),M29/M$7*100,"") ->  | P29: =IF(AND(ISNUMBER(O29)=TRUE,O$7<>""),O29/O$7*100,"") ->  | R29: 償還計画 | S29: （ア）償還源資 | T29: （計画） | U29: =IF(ISNUMBER(U18)=TRUE,U18,"") ->  | V29: 39 | W29: 42 | X29: 45 | Y29: 45 | Z29: 47
B30: 税引前当期利益 | D30: （予想） | E30: =IF(E26="","",E26+E28) ->  | F30: =IF(AND(ISNUMBER(E30)=TRUE,E$6<>""),E30/E$6*100,"") ->  | G30: =IF(G26="","",G26+G28) -> 24 | H30: =IF(AND(ISNUMBER(G30)=TRUE,G$6<>""),G30/G$6*100,"") -> 5 | I30: =IF(I26="","",I26+I28) -> 28 | J30: =IF(AND(ISNUMBER(I30)=TRUE,I$6<>""),I30/I$6*100,"") -> 5.833333333 | K30: =IF(K26="","",K26+K28) -> 32 | L30: =IF(AND(ISNUMBER(K30)=TRUE,K$6<>""),K30/K$6*100,"") -> 6.666666667 | M30: =IF(M26="","",M26+M28) -> 32 | N30: =IF(AND(ISNUMBER(M30)=TRUE,M$6<>""),M30/M$6*100,"") -> 6.666666667 | O30: =IF(O26="","",O26+O28) -> 34 | P30: =IF(AND(ISNUMBER(O30)=TRUE,O$6<>""),O30/O$6*100,"") -> 7.083333333 | T30: （実績） | U30: 10
D31: （実績） | E31: =IF(E27="","",E27+E29) -> -5 | F31: =IF(AND(ISNUMBER(E31)=TRUE,E$7<>""),E31/E$7*100,"") -> -1.041666667 | G31: =IF(G27="","",G27+G29) ->  | H31: =IF(AND(ISNUMBER(G31)=TRUE,G$7<>""),G31/G$7*100,"") ->  | I31: =IF(I27="","",I27+I29) ->  | J31: =IF(AND(ISNUMBER(I31)=TRUE,I$7<>""),I31/I$7*100,"") ->  | K31: =IF(K27="","",K27+K29) ->  | L31: =IF(AND(ISNUMBER(K31)=TRUE,K$7<>""),K31/K$7*100,"") ->  | M31: =IF(M27="","",M27+M29) ->  | N31: =IF(AND(ISNUMBER(M31)=TRUE,M$7<>""),M31/M$7*100,"") ->  | O31: =IF(O27="","",O27+O29) ->  | P31: =IF(AND(ISNUMBER(O31)=TRUE,O$7<>""),O31/O$7*100,"") ->  | T31: （計画比） | U31: =IF(AND(ISNUMBER(U30),ISNUMBER(U29))=TRUE,U30-U29,"") -> 
B32: 税 金 | D32: （予想） | F32: =IF(AND(ISNUMBER(E32)=TRUE,E$6<>""),E32/E$6*100,"") ->  | G32: 0 | H32: =IF(AND(ISNUMBER(G32)=TRUE,G$6<>""),G32/G$6*100,"") -> 0 | I32: 0 | J32: =IF(AND(ISNUMBER(I32)=TRUE,I$6<>""),I32/I$6*100,"") -> 0 | K32: 0 | L32: =IF(AND(ISNUMBER(K32)=TRUE,K$6<>""),K32/K$6*100,"") -> 0 | M32: 0 | N32: =IF(AND(ISNUMBER(M32)=TRUE,M$6<>""),M32/M$6*100,"") -> 0 | O32: 0 | P32: =IF(AND(ISNUMBER(O32)=TRUE,O$6<>""),O32/O$6*100,"") -> 0 | S32: （イ）要償還額 | T32: （計画） | V32: =IF(ISNUMBER(V28)=TRUE,V28,"") -> 22 | W32: =IF(ISNUMBER(W28)=TRUE,W28,"") -> 22 | X32: =IF(ISNUMBER(X28)=TRUE,X28,"") -> 22 | Y32: =IF(ISNUMBER(Y28)=TRUE,Y28,"") -> 22 | Z32: =IF(ISNUMBER(Z28)=TRUE,Z28,"") -> 22
D33: （実績） | E33: 0 | F33: =IF(AND(ISNUMBER(E33)=TRUE,E$7<>""),E33/E$7*100,"") -> 0 | H33: =IF(AND(ISNUMBER(G33)=TRUE,G$7<>""),G33/G$7*100,"") ->  | J33: =IF(AND(ISNUMBER(I33)=TRUE,I$7<>""),I33/I$7*100,"") ->  | L33: =IF(AND(ISNUMBER(K33)=TRUE,K$7<>""),K33/K$7*100,"") ->  | N33: =IF(AND(ISNUMBER(M33)=TRUE,M$7<>""),M33/M$7*100,"") ->  | P33: =IF(AND(ISNUMBER(O33)=TRUE,O$7<>""),O33/O$7*100,"") ->  | T33: （実績） | U33: =IF(ISNUMBER(U28)=TRUE,U28,"") -> 20
B34: 当期利益 | D34: （予想） | E34: =IF(E30="","",E30-E32) ->  | F34: =IF(AND(ISNUMBER(E34)=TRUE,E$6<>""),E34/E$6*100,"") ->  | G34: =IF(G30="","",G30-G32) -> 24 | H34: =IF(AND(ISNUMBER(G34)=TRUE,G$6<>""),G34/G$6*100,"") -> 5 | I34: =IF(I30="","",I30-I32) -> 28 | J34: =IF(AND(ISNUMBER(I34)=TRUE,I$6<>""),I34/I$6*100,"") -> 5.833333333 | K34: =IF(K30="","",K30-K32) -> 32 | L34: =IF(AND(ISNUMBER(K34)=TRUE,K$6<>""),K34/K$6*100,"") -> 6.666666667 | M34: =IF(M30="","",M30-M32) -> 32 | N34: =IF(AND(ISNUMBER(M34)=TRUE,M$6<>""),M34/M$6*100,"") -> 6.666666667 | O34: =IF(O30="","",O30-O32) -> 34 | P34: =IF(AND(ISNUMBER(O34)=TRUE,O$6<>""),O34/O$6*100,"") -> 7.083333333 | T34: （計画比） | U34: =IF(AND(ISNUMBER(U33),ISNUMBER(U32))=TRUE,U33-U32,"") -> 
D35: （実績） | E35: =IF(E31="","",E31-E33) -> -5 | F35: =IF(AND(ISNUMBER(E35)=TRUE,E$7<>""),E35/E$7*100,"") -> -1.041666667 | G35: =IF(G31="","",G31-G33) ->  | H35: =IF(AND(ISNUMBER(G35)=TRUE,G$7<>""),G35/G$7*100,"") ->  | I35: =IF(I31="","",I31-I33) ->  | J35: =IF(AND(ISNUMBER(I35)=TRUE,I$7<>""),I35/I$7*100,"") ->  | K35: =IF(K31="","",K31-K33) ->  | L35: =IF(AND(ISNUMBER(K35)=TRUE,K$7<>""),K35/K$7*100,"") ->  | M35: =IF(M31="","",M31-M33) ->  | N35: =IF(AND(ISNUMBER(M35)=TRUE,M$7<>""),M35/M$7*100,"") ->  | O35: =IF(O31="","",O31-O33) ->  | P35: =IF(AND(ISNUMBER(O35)=TRUE,O$7<>""),O35/O$7*100,"") ->  | R35: 余 力 | S35: 差 引 | T35: （計画） | U35: =IF(AND(U29<>"",U32<>""),U29-U32,"") ->  | V35: 17 | W35: 20 | X35: 23 | Y35: 23 | Z35: 25
B36: 減価償却費 | D36: （予想） | F36: =IF(AND(ISNUMBER(E36)=TRUE,E$6<>""),E36/E$6*100,"") ->  | G36: 15 | H36: =IF(AND(ISNUMBER(G36)=TRUE,G$6<>""),G36/G$6*100,"") -> 3.125 | I36: 14 | J36: =IF(AND(ISNUMBER(I36)=TRUE,I$6<>""),I36/I$6*100,"") -> 2.916666667 | K36: 13 | L36: =IF(AND(ISNUMBER(K36)=TRUE,K$6<>""),K36/K$6*100,"") -> 2.708333333 | M36: 13 | N36: =IF(AND(ISNUMBER(M36)=TRUE,M$6<>""),M36/M$6*100,"") -> 2.708333333 | O36: 13 | P36: =IF(AND(ISNUMBER(O36)=TRUE,O$6<>""),O36/O$6*100,"") -> 2.708333333 | T36: （実績） | U36: -10
D37: （実績） | E37: 15 | F37: =IF(AND(ISNUMBER(E37)=TRUE,E$7<>""),E37/E$7*100,"") -> 3.125 | H37: =IF(AND(ISNUMBER(G37)=TRUE,G$7<>""),G37/G$7*100,"") ->  | J37: =IF(AND(ISNUMBER(I37)=TRUE,I$7<>""),I37/I$7*100,"") ->  | L37: =IF(AND(ISNUMBER(K37)=TRUE,K$7<>""),K37/K$7*100,"") ->  | N37: =IF(AND(ISNUMBER(M37)=TRUE,M$7<>""),M37/M$7*100,"") ->  | P37: =IF(AND(ISNUMBER(O37)=TRUE,O$7<>""),O37/O$7*100,"") ->  | T37: （計画比） | U37: =IF(AND(ISNUMBER(U36),ISNUMBER(U35))=TRUE,U36-U35,"") -> 
R38: 長期借入金残高 | S38: 肥後銀行本店 | V38: 15 | W38: 13 | X38: 11 | Y38: 9 | Z38: 7
S39: 肥後銀行本店 | U39: 100 | V39: 90 | W39: 80 | X39: 70 | Y39: 60 | Z39: 50
S40: ●●銀行●●支店 | U40: 60 | V40: 55 | W40: 50 | X40: 45 | Y40: 40 | Z40: 35
S41: ●●銀行●●支店 | U41: 40 | V41: 35 | W41: 30 | X41: 25 | Y41: 20 | Z41: 15
R45: 特記事項

Sheet Sheet1 (hidden)
A1: 千円
A2: 百万円

Sheet 収支予想表・償還計画表【記入例】
